fUSD/lending_fUSD_20251017
["ID","MTS","AMOUNT","RATE_DAILY","PERIOD"]
[391625093,1760709065076,-500.0,0.00024931,2]
[391625094,1760709065085,-1817.2,0.00024931,2]
[391625095,1760709065094,-760.86,0.00024931,2]
[391625096,1760709065103,-500.0,0.00024931,2]
[391625097,1760709065112,-500.0,0.00024931,2]
[391625098,1760709065122,-500.0,0.00024931,2]
[391625099,1760709065131,-500.0,0.00024931,2]
[391625100,1760709065140,-501.05396346,0.00024931,2]
[391625101,1760709065149,-500.0,0.00024931,2]
[391625102,1760709065158,-500.0,0.00024931,2]
[391625103,1760709065167,-500.0,0.00024931,2]
[391625104,1760709065177,-500.0,0.00024931,2]
[391625105,1760709065186,-500.34932488,0.00024931,2]
[391625106,1760709065197,-1098.2,0.00024931,2]
[391625107,1760709065207,-498.8926823,0.00024931,2]
[391625108,1760709065216,-500.0,0.00024931,2]
[391625109,1760709065225,-500.0,0.00024931,2]
[391625110,1760709065234,-511.22,0.00024931,2]
[391625111,1760709065243,-706.0,0.00024931,2]
[391625112,1760709065252,-509.89723452,0.00024931,2]
[391625113,1760709065261,-500.0,0.00024931,2]
[391625114,1760709065270,-500.0,0.00024931,2]
[391625115,1760709065280,-500.2727282,0.00024931,2]
[391625116,1760709065289,-500.0,0.00024931,2]
[391625117,1760709065298,-500.0,0.00024931,2]
[391625118,1760709065308,-3252.66,0.00024931,2]
[391625119,1760709065317,-500.0,0.00024931,2]
[391625120,1760709065326,-500.0,0.00024931,2]
[391625121,1760709065335,-500.43741803,0.00024931,2]
[391625122,1760709065344,-500.0,0.00024931,2]
[391625123,1760709065354,-500.0,0.00024931,2]
[391625124,1760709065363,-556.68161543,0.00024931,2]
[391625125,1760709065373,-500.0,0.00024931,2]
[391625126,1760709065383,-500.0,0.00024931,2]
[391625127,1760709065393,-500.36324121,0.00024931,2]
[391625128,1760709065403,-500.81022445,0.00024931,2]
[391625129,1760709065412,-500.2445765,0.00024931,2]
[391625130,1760709065421,-1046.4,0.00024931,2]
[391625131,1760709065431,-500.0,0.00024931,2]
[391625132,1760709065440,-2857.65,0.00024931,2]
[391625133,1760709065455,-500.0,0.00024931,2]
[391625134,1760709065464,-500.0,0.00024931,2]
[391625135,1760709065473,-500.0,0.00024931,2]
[391625136,1760709065483,-500.0,0.00024931,2]
[391625137,1760709065493,-524.91659139,0.00024931,2]
[391625138,1760709065503,-500.0,0.00024931,2]
[391625139,1760709065512,-500.0,0.00024931,2]
[391625140,1760709065521,-500.85699119,0.00024931,2]
[391625141,1760709065530,-668.62,0.00024931,2]
[391625142,1760709065540,-500.0,0.00024931,2]
[391625143,1760709065549,-196.87050629,0.00024931,2]
[391625144,1760709065558,-3315.73,0.00024931,2]
[391625145,1760709065567,-2028.03,0.00024931,2]
[391625146,1760709065576,-1249.99,0.00024931,2]
[391625147,1760709065585,-666.89,0.00024931,2]
[391625148,1760709065596,-500.0,0.00024931,2]
[391625149,1760709065606,-500.0,0.00024931,2]
[391625150,1760709065615,-151.0,0.00024931,7]
[391625151,1760709065624,-151.0,0.00024931,7]
[391625152,1760709065634,-567.07,0.00024931,2]
[391625153,1760709065643,-500.0,0.00024931,2]
[391625154,1760709065653,-624.28,0.00024931,2]
[391625155,1760709065663,-500.0,0.00024931,2]
[391625156,1760709065674,-151.0,0.00024931,7]
[391625157,1760709065684,-1867.215573,0.00024931,2]
[391625158,1760709065693,-1266.688585,0.00024931,2]
[391625159,1760709065706,-151.0,0.00024931,7]
[391625160,1760709065715,-151.0,0.00024931,7]
[391625161,1760709065724,-1429.722242,0.00024931,2]
[391625162,1760709065733,-47887.695419,0.00024931,2]
[391625163,1760709065742,-1429.722242,0.00024931,2]
[391625164,1760709065751,-500.0,0.00024931,2]
[391625165,1760709065761,-500.40945085,0.00024931,2]
[391625166,1760709065770,-438.45704586,0.00024931,2]
[391625167,1760709065780,-500.0,0.00024931,2]
[391625168,1760709065789,-36735.938127,0.00024931,2]
[391625169,1760709065798,-500.5600015,0.00024931,2]
[391625170,1760709065808,-500.0,0.00024931,2]
[391625171,1760709065817,-523.65696936,0.00024931,2]
[391625172,1760709065826,-644.5,0.00024931,2]
[391625173,1760709065835,-738.71,0.00024931,2]
[391625174,1760709065844,-500.0,0.00024931,2]
[391625175,1760709065853,-151.0,0.00024931,7]
[391625176,1760709065862,-500.0,0.00024931,2]
[391625177,1760709065872,-151.0,0.00024931,7]
[391625178,1760709065881,-151.0,0.00024931,7]
[391625179,1760709065891,-500.0,0.00024931,2]
[391625180,1760709065900,-500.69435819,0.00024931,2]
[391625181,1760709065909,-506.02068283,0.00024931,2]
[391625182,1760709065919,-151.0,0.00024931,7]
[391625183,1760709065928,-500.0,0.00024931,2]
[391625184,1760709065937,-151.00000005,0.00024931,7]
[391625185,1760709065949,-541.78755383,0.00024931,2]
[391625186,1760709065958,-151.49143,0.00024931,7]
[391625187,1760709065968,-500.0,0.00024931,2]
[391625188,1760709065977,-500.0,0.00024931,2]
[391625189,1760709065987,-500.0,0.00024931,2]
[391625190,1760709065996,-500.0,0.00024931,2]
[391625191,1760709066005,-500.0,0.00024931,2]
[391625192,1760709066014,-500.0,0.00024931,2]
[391625193,1760709066025,-500.0,0.00024931,2]
[391625194,1760709066035,-500.0,0.00024931,2]
[391625195,1760709066045,-500.0,0.00024931,2]
[391625196,1760709066054,-500.0,0.00024931,2]
[391625197,1760709066064,-470.43893288,0.00024931,2]
[391625198,1760709066074,-500.0,0.00024931,2]
[391625199,1760709066083,-500.0,0.00024931,2]
[391625200,1760709066093,-500.0,0.00024931,2]
[391625201,1760709066103,-500.0,0.00024931,2]
[391625202,1760709066112,-500.0,0.00024931,2]
[391625203,1760709066122,-151.0,0.00024931,7]
[391625204,1760709066132,-500.0,0.00024931,2]
[391625205,1760709066141,-151.0,0.00024931,7]
[391625206,1760709066151,-500.0,0.00024931,2]
[391625207,1760709066161,-875.04,0.00024931,2]
[391625208,1760709066171,-500.0,0.00024931,2]
[391625209,1760709066180,-500.0,0.00024931,2]
[391625210,1760709066190,-151.0,0.00024931,7]
[391625211,1760709066204,-500.0,0.00024931,2]
[391625212,1760709066214,-500.0,0.00024931,2]
[391625213,1760709066224,-500.0,0.00024931,2]
[391625214,1760709066233,-500.0,0.00024931,2]
[391625215,1760709066242,-500.0,0.00024931,2]
[391625216,1760709066252,-2590.26,0.00024931,2]
[391625217,1760709066262,-179.38492247,0.00024931,2]
[391625218,1760709066272,-1145.85,0.00024931,2]
[391625219,1760709066282,-583.10772371,0.00024931,2]
[391625220,1760709066292,-500.0,0.00024931,2]
[391625221,1760709066302,-500.0,0.00024931,2]
[391625222,1760709066312,-500.0,0.00024931,2]
[391625223,1760709066322,-500.0,0.00024931,2]
[391625224,1760709066332,-500.0,0.00024931,2]
[391625225,1760709066343,-589.63,0.00024931,2]
[391625226,1760709066353,-840.86,0.00024931,2]
[391625227,1760709066363,-288.23369462,0.00024931,2]
[391625228,1760709066372,-500.0,0.00024931,2]
[391625229,1760709066382,-500.0,0.00024931,2]
[391625230,1760709066392,-29588.510886,0.00024931,2]
[391625231,1760709066401,-513.56362161,0.00024931,2]
[391625232,1760709066411,-500.0,0.00024931,2]
[391625233,1760709066421,-586.78921413,0.00024931,2]
[391625234,1760709066431,-599.72,0.00024931,2]
[391625235,1760709066441,-500.0,0.00024931,2]
[391625236,1760709066454,-500.0,0.00024931,2]
[391625237,1760709066464,-2359.88,0.00024931,2]
[391625238,1760709066475,-2899.42,0.00024931,2]
[391625239,1760709066485,-530.07368561,0.00024931,2]
[391625240,1760709066495,-926.78,0.00024931,2]
[391625241,1760709066505,-646.93746779,0.00024931,2]
[391625242,1760709066515,-970.74,0.00024931,2]
[391625243,1760709066526,-1604.59,0.00024931,2]
[391625244,1760709066536,-500.0,0.00024931,2]
[391625245,1760709066547,-500.0,0.00024931,2]
[391625246,1760709066557,-502.08532857,0.00024931,2]
[391625247,1760709066567,-203.95374748,0.00024931,2]
[391625248,1760709066577,-500.0,0.00024931,2]
[391625249,1760709066588,-500.0,0.00024931,2]
[391625250,1760709066602,-500.0,0.00024931,2]
[391625251,1760709066613,-551.09659333,0.00024931,2]
[391625252,1760709066623,-500.0,0.00024931,2]
[391625253,1760709066635,-500.0,0.00024931,2]
[391625254,1760709066646,-500.0,0.00024931,2]
[391625255,1760709066657,-500.0,0.00024931,2]
[391625256,1760709066667,-500.0,0.00024931,2]
[391625257,1760709066679,-500.0,0.00024931,2]
[391625258,1760709066690,-500.0,0.00024931,2]
[391625259,1760709066706,-500.0,0.00024931,2]
[391625260,1760709066717,-693.35,0.00024931,2]
[391625261,1760709066728,-500.99107387,0.00024931,2]
[391625262,1760709066739,-620.21,0.00024931,2]
[391625263,1760709066750,-500.0,0.00024931,2]
[391625264,1760709066761,-500.0,0.00024931,2]
[391625265,1760709066772,-500.71245767,0.00024931,2]
[391625266,1760709066783,-500.0,0.00024931,2]
[391625267,1760709066793,-500.0,0.00024931,2]
[391625268,1760709066803,-634.27253826,0.00024931,2]
[391625269,1760709066814,-500.0,0.00024931,2]
[391625270,1760709066825,-501.83045728,0.00024931,2]
[391625271,1760709066837,-500.4542541,0.00024931,2]
[391625272,1760709066848,-500.75881101,0.00024931,2]
[391625273,1760709066858,-500.0,0.00024931,2]
[391625274,1760709066868,-693.02,0.00024931,2]
[391625275,1760709066879,-500.0,0.00024931,2]
[391625276,1760709066889,-500.0,0.00024931,2]
[391625277,1760709066900,-500.0,0.00024931,2]
[391625278,1760709066911,-500.0,0.00024931,2]
[391625279,1760709066921,-500.0,0.00024931,2]
[391625280,1760709066931,-500.0,0.00024931,2]
[391625281,1760709066941,-501.01941496,0.00024931,2]
[391625282,1760709066957,-500.25567537,0.00024931,2]
[391625283,1760709066967,-500.0,0.00024931,2]
[391625284,1760709066978,-501.53232657,0.00024931,2]
[391625285,1760709066988,-500.0,0.00024931,2]
[391625286,1760709066998,-500.43136695,0.00024931,2]
[391625287,1760709067008,-635.0455582,0.00024931,2]
[391625288,1760709067018,-438.8323057,0.00024931,2]
[391625289,1760709067029,-500.0,0.00024931,2]
[391625290,1760709067039,-500.0,0.00024931,2]
[391625291,1760709067049,-500.0,0.00024931,2]
[391625292,1760709067060,-239.77051353,0.00024931,2]
[391625293,1760709067070,-513.78194557,0.00024931,2]
[391625294,1760709067080,-500.0,0.00024931,2]
[391625295,1760709067091,-500.0,0.00024931,2]
[391625296,1760709067100,-508.57968299,0.00024931,2]
[391625297,1760709067111,-500.41324134,0.00024931,2]
[391625298,1760709067120,-571.16516239,0.00024931,2]
[391625299,1760709067131,-500.0,0.00024931,2]
[391625300,1760709067141,-511.20078781,0.00024931,2]
[391625301,1760709067151,-518.87885304,0.00024931,2]
[391625302,1760709067160,-274.30063735,0.00024931,2]
[391625303,1760709067170,-500.0,0.00024931,2]
[391625304,1760709067181,-591.96289258,0.00024931,2]
[391625305,1760709067191,-500.0,0.00024931,2]
[391625306,1760709067205,-500.0,0.00024931,2]
[391625307,1760709067215,-500.58943937,0.00024931,2]
[391625308,1760709067226,-500.99784966,0.00024931,2]
[391625309,1760709067471,-344.56436218,0.00024931,2]
[391625310,1760709067481,-500.81542061,0.00024931,2]
[391625311,1760709067492,-500.0,0.00024931,2]
[391625312,1760709067502,-500.0,0.00024931,2]
[391625313,1760709067512,-156.29877766,0.00024931,2]
[391625314,1760709067522,-500.46213989,0.00024931,2]
[391625315,1760709067532,-261.59474105,0.00024931,2]
[391625316,1760709067543,-500.50828995,0.00024931,2]
[391625317,1760709067553,-311.81557835,0.00024931,2]
[391625318,1760709067563,-501.32997437,0.00024931,2]
[391625319,1760709067572,-500.0,0.00024931,2]
[391625320,1760709067583,-502.15417359,0.00024931,2]
[391625321,1760709067596,-500.90550034,0.00024931,2]
[391625322,1760709067606,-152.444145,0.00024931,7]
[391625323,1760709067616,-1354.15,0.00024931,2]
[391625324,1760709067626,-505.29722277,0.00024931,2]
[391625325,1760709067635,-500.0,0.00024931,2]
[391625326,1760709067646,-151.0,0.00024931,7]
[391625327,1760709067656,-500.0,0.00024931,2]
[391625328,1760709067667,-500.0,0.00024931,2]
[391625329,1760709067677,-500.0,0.00024931,2]
[391625330,1760709067687,-151.0,0.00024931,7]
[391625331,1760709067697,-500.76908748,0.00024931,2]
[391625332,1760709067714,-3285.62,0.00024931,2]
[391625333,1760709067723,-151.0,0.00024931,7]
[391625334,1760709067733,-500.0,0.00024931,2]
[391625335,1760709067743,-501.90414551,0.00024931,2]
[391625336,1760709067752,-500.0,0.00024931,2]
[391625337,1760709067762,-151.0,0.00024931,7]
[391625338,1760709067772,-500.0,0.00024931,2]
[391625339,1760709067781,-500.0,0.00024931,2]
[391625340,1760709067791,-151.0,0.00024931,7]
[391625341,1760709067801,-265.59601219,0.00024931,2]
[391625342,1760709067810,-280.712066,0.00024931,7]
[391625343,1760709067819,-151.0,0.00024931,7]
[391625344,1760709067828,-500.0,0.00024931,2]
[391625345,1760709067838,-280.712066,0.00024931,7]
[391625346,1760709067847,-333.13625527,0.00024931,2]
[391625347,1760709067856,-500.0,0.00024931,2]
[391625348,1760709067867,-500.0,0.00024931,2]
[391625349,1760709067876,-500.0,0.00024931,2]
[391625350,1760709067886,-500.0,0.00024931,2]
[391625351,1760709067895,-151.0,0.00024931,7]
[391625352,1760709067906,-751.82,0.00024931,2]
[391625353,1760709067916,-530.05594012,0.00024931,2]
[391625354,1760709067925,-361.3720228,0.00024931,2]
[391625355,1760709067935,-151.0,0.00024931,7]
[391625356,1760709067945,-280.712066,0.00024931,7]
[391625358,1760709067957,-211.947456,0.00024931,7]
[391625359,1760709067968,-224.31412705,0.00024931,2]
[391625360,1760709067978,-500.0,0.00024931,2]
[391625361,1760709067988,-500.0,0.00024931,2]
[391625362,1760709067998,-211.947456,0.00024931,7]
[391625363,1760709068008,-1494.42,0.00024931,2]
[391625364,1760709068017,-545.05706466,0.00024931,2]
[391625365,1760709068027,-211.947456,0.00024931,7]
[391625366,1760709068037,-500.0,0.00024931,2]
[391625367,1760709068047,-280.712066,0.00024931,7]
[391625368,1760709068057,-211.947456,0.00024931,7]
[391625369,1760709068067,-500.0,0.00024931,2]
[391625370,1760709068076,-500.0,0.00024931,2]
[391625371,1760709068086,-510.11306466,0.00024931,2]
[391625372,1760709068096,-500.0,0.00024931,2]
[391625373,1760709068106,-503.03993908,0.00024931,2]
[391625374,1760709068117,-151.0,0.00024931,7]
[391625375,1760709068127,-500.0,0.00024931,2]
[391625376,1760709068137,-616.40146017,0.00024931,2]
[391625377,1760709068146,-500.89801814,0.00024931,2]
[391625378,1760709068156,-253.50900682,0.00024931,2]
[391625379,1760709068166,-500.0,0.00024931,2]
[391625380,1760709068176,-158.46523598,0.00024931,2]
[391625381,1760709068185,-500.0,0.00024931,2]
[391625382,1760709068195,-633.38,0.00024931,2]
[391625383,1760709068208,-500.0,0.00024931,2]
[391625384,1760709068219,-501.11307326,0.00024931,2]
[391625385,1760709068228,-501.21261752,0.00024931,2]
[391625386,1760709068239,-202.18924263,0.00024931,2]
[391625387,1760709068250,-151.0,0.00024931,7]
[391625388,1760709068260,-500.0,0.00024931,2]
[391625389,1760709068270,-500.0,0.00024931,2]
[391625390,1760709068280,-500.0,0.00024931,2]
[391625391,1760709068291,-500.0,0.00024931,2]
[391625392,1760709068302,-996.02,0.00024931,2]
[391625393,1760709068312,-500.0,0.00024931,2]
[391625394,1760709068321,-500.0,0.00024931,2]
[391625395,1760709068331,-534.95,0.00024931,2]
[391625396,1760709068341,-712.19,0.00024931,2]
[391625397,1760709068352,-500.0,0.00024931,2]
[391625398,1760709068362,-755.48,0.00024931,2]
[391625399,1760709068372,-500.0,0.00024931,2]
[391625400,1760709068382,-500.0,0.00024931,2]
[391625401,1760709068392,-500.0,0.00024931,2]
[391625402,1760709068402,-500.0,0.00024931,2]
[391625403,1760709068412,-500.0,0.00024931,2]
[391625404,1760709068422,-502.62557005,0.00024931,2]
[391625405,1760709068431,-500.0,0.00024931,2]
[391625406,1760709068442,-500.0,0.00024931,2]
[391625407,1760709068455,-652.89,0.00024931,2]
[391625408,1760709068465,-530.1,0.00024931,2]
[391625409,1760709068476,-500.0,0.00024931,2]
[391625410,1760709068486,-500.0,0.00024931,2]
[391625411,1760709068497,-151.0,0.00024931,7]
[391625412,1760709068507,-2532.97,0.00024931,2]
[391625413,1760709068518,-500.0,0.00024931,2]
[391625414,1760709068528,-1140.2,0.00024931,2]
[391625415,1760709068538,-151.0,0.00024931,7]
[391625416,1760709068548,-151.0,0.00024931,7]
[391625417,1760709068558,-151.0,0.00024931,7]
[391625418,1760709068568,-500.0,0.00024931,2]
[391625419,1760709068579,-151.0,0.00024931,7]
[391625420,1760709068589,-151.0,0.00024931,7]
[391625421,1760709068604,-151.0,0.00024931,7]
[391625422,1760709068615,-500.0,0.00024931,2]
[391625423,1760709068626,-151.0,0.00024931,7]
[391625424,1760709068637,-238.818803,0.00024931,7]
[391625425,1760709068647,-522.00273792,0.00024931,2]
[391625426,1760709068658,-542.06597762,0.00024931,2]
[391625427,1760709068668,-2976.2,0.00024931,2]
[391625428,1760709068680,-151.0,0.00024931,7]
[391625429,1760709068691,-500.0,0.00024931,2]
[391625430,1760709068704,-630.41,0.00024931,2]
[391625431,1760709068715,-500.0,0.00024931,2]
[391625432,1760709068725,-1119.53,0.00024931,2]
[391625433,1760709068735,-310.84313804,0.00024931,2]
[391625434,1760709068744,-566.717086,0.00024931,2]
[391625435,1760709068754,-500.0,0.00024931,2]
[391625436,1760709068772,-299.43956567,0.00024931,2]
[391625437,1760709068789,-645.03100762,0.00024931,2]
[391625438,1760709068799,-501.7286333,0.00024931,2]
[391625439,1760709068810,-503.28506059,0.00024931,2]
[391625440,1760709068821,-500.0,0.00024931,2]
[391625441,1760709068833,-1387.94,0.00024931,2]
[391625442,1760709068845,-500.0,0.00024931,2]
[391625443,1760709068856,-666.66,0.00024931,2]
[391625444,1760709068867,-500.0,0.00024931,2]
[391625445,1760709068878,-566.55,0.00024931,2]
[391625446,1760709068889,-500.0,0.00024931,2]
[391625447,1760709068900,-500.0,0.00024931,2]
[391625448,1760709068911,-500.0,0.00024931,2]
[391625449,1760709068921,-500.0,0.00024931,2]
[391625450,1760709068932,-500.0,0.00024931,2]
[391625451,1760709068943,-500.0,0.00024931,2]
[391625452,1760709068958,-500.0,0.00024931,2]
[391625453,1760709068969,-500.0,0.00024931,2]
[391625454,1760709068980,-500.0,0.00024931,2]
[391625455,1760709068990,-151.0,0.00024931,7]
[391625456,1760709069001,-151.0,0.00024931,7]
[391625457,1760709069012,-500.0,0.00024931,2]
[391625458,1760709069022,-500.0,0.00024931,2]
[391625459,1760709069032,-500.0,0.00024931,2]
[391625460,1760709069043,-151.0,0.00024931,7]
[391625461,1760709069053,-706.74,0.00024931,2]
[391625462,1760709069064,-511.79599111,0.00024931,2]
[391625463,1760709069075,-500.0,0.00024931,2]
[391625464,1760709069086,-1000.0,0.00024931,2]
[391625465,1760709069097,-163.375438,0.00024931,7]
[391625466,1760709069107,-500.0,0.00024931,2]
[391625467,1760709069118,-500.0,0.00024931,2]
[391625468,1760709069134,-500.0,0.00024931,2]
[391625469,1760709069145,-500.0,0.00024931,2]
[391625470,1760709069156,-500.0,0.00024931,2]
[391625471,1760709069167,-286.32284464,0.00024931,2]
[391625472,1760709069178,-273.882726,0.00024931,7]
[391625473,1760709069189,-1247.05,0.00024931,2]
[391625474,1760709069200,-500.0,0.00024931,2]
[391625475,1760709069214,-1306.87,0.00024931,2]
[391625476,1760709069225,-2452.62,0.00024931,2]
[391625477,1760709069236,-500.0,0.00024931,2]
[391625478,1760709069247,-401.55481026,0.00024931,2]
[391625479,1760709069257,-500.0,0.00024931,2]
[391625480,1760709069268,-500.0,0.00024931,2]
[391625481,1760709069280,-405.09966708,0.00024931,2]
[391625482,1760709069290,-505.65702261,0.00024931,2]
[391625483,1760709069300,-500.0,0.00024931,2]
[391625484,1760709069311,-500.0,0.00024931,2]
[391625485,1760709069321,-500.0,0.00024931,2]
[391625486,1760709069331,-530.71,0.00024931,2]
[391625487,1760709069342,-585.43336588,0.00024931,2]
[391625488,1760709069352,-224.18672018,0.00024931,2]
[391625489,1760709069362,-500.0,0.00024931,2]
[391625490,1760709069373,-500.0,0.00024931,2]
[391625491,1760709069383,-501.20325194,0.00024931,2]
[391625492,1760709069394,-500.0,0.00024931,2]
[391625493,1760709069404,-642.79,0.00024931,2]
[391625494,1760709069414,-500.0,0.00024931,2]
[391625495,1760709069425,-538.95162284,0.00024931,2]
[391625496,1760709069435,-500.0,0.00024931,2]
[391625497,1760709069445,-1026.4,0.00024931,2]
[391625498,1760709069461,-501.31910156,0.00024931,2]
[391625499,1760709069472,-500.0,0.00024931,2]
[391625500,1760709069482,-500.0,0.00024931,2]
[391625501,1760709069498,-548.85237847,0.00024931,2]
[391625502,1760709069509,-500.0,0.00024931,2]
[391625503,1760709069520,-500.0,0.00024931,2]
[391625504,1760709069531,-197.41069151,0.00024931,2]
[391625505,1760709069542,-151.0,0.00024931,7]
[391625506,1760709069553,-502.71372669,0.00024931,2]
[391625507,1760709069563,-500.0,0.00024931,2]
[391625508,1760709069574,-216.32674483,0.00024931,2]
[391625509,1760709069585,-500.0,0.00024931,2]
[391625510,1760709069599,-500.0,0.00024931,2]
[391625511,1760709069610,-500.0,0.00024931,2]
[391625512,1760709069620,-500.0,0.00024931,2]
[391625513,1760709069630,-151.0,0.00024931,7]
[391625514,1760709069642,-500.0,0.00024931,2]
[391625515,1760709069653,-500.0,0.00024931,2]
[391625516,1760709069664,-500.0,0.00024931,2]
[391625517,1760709069675,-500.0,0.00024931,2]
[391625518,1760709069685,-500.0,0.00024931,2]
[391625519,1760709069696,-213.446379,0.00024931,7]
[391625520,1760709069712,-151.0,0.00024931,7]
[391625521,1760709069722,-218.89731619,0.00024931,2]
[391625522,1760709069732,-213.446379,0.00024931,7]
[391625523,1760709069743,-151.0,0.00024931,7]
[391625524,1760709069753,-213.446379,0.00024931,7]
[391625525,1760709069764,-281.99076706,0.00024931,2]
[391625526,1760709069775,-567.91995718,0.00024931,2]
[391625527,1760709069786,-213.446379,0.00024931,7]
[391625528,1760709069796,-500.0,0.00024931,2]
[391625529,1760709069807,-274.11937708,0.00024931,2]
[391625530,1760709069817,-3204.71,0.00024931,2]
[391625531,1760709069827,-611.76667201,0.00024931,2]
[391625532,1760709069837,-500.0,0.00024931,2]
[391625533,1760709069848,-163.661789,0.00024931,7]
[391625534,1760709069863,-500.0,0.00024931,2]
[391625535,1760709069874,-522.5,0.00024931,2]
[391625536,1760709069884,-626.12865509,0.00024931,2]
[391625537,1760709069896,-163.661789,0.00024931,7]
[391625538,1760709069906,-287.46799248,0.00024931,2]
[391625539,1760709069916,-500.0,0.00024931,2]
[391625540,1760709069926,-910.91,0.00024931,2]
[391625541,1760709069936,-151.0,0.00024931,7]
[391625542,1760709069946,-163.661789,0.00024931,7]
[391625543,1760709069959,-500.92728374,0.00024931,2]
[391625544,1760709069969,-151.0,0.00024931,7]
[391625545,1760709069978,-172.121919,0.00024931,7]
[391625546,1760709069988,-284.2680019,0.00024931,2]
[391625547,1760709069998,-163.661789,0.00024931,7]
[391625548,1760709070188,-151.0,0.00024931,7]
[391625549,1760709070198,-164.567668,0.00024931,7]
[391625550,1760709070211,-172.121919,0.00024931,7]
[391625551,1760709070220,-500.0,0.00024931,2]
[391625552,1760709070230,-151.0,0.00024931,7]
[391625553,1760709070239,-172.121919,0.00024931,7]
[391625554,1760709070248,-500.0,0.00024931,2]
[391625555,1760709070258,-172.121919,0.00024931,7]
[391625556,1760709070267,-500.0,0.00024931,2]
[391625557,1760709070277,-500.0,0.00024931,2]
[391625558,1760709070287,-500.0,0.00024931,2]
[391625559,1760709070296,-500.0,0.00024931,2]
[391625560,1760709070306,-500.0,0.00024931,2]
[391625561,1760709070315,-500.0,0.00024931,2]
[391625562,1760709070325,-151.0,0.00024931,7]
[391625563,1760709070334,-151.0,0.00024931,7]
[391625564,1760709070343,-5381.98,0.00024931,2]
[391625565,1760709070353,-500.0,0.00024931,2]
[391625566,1760709070362,-500.0,0.00024931,2]
[391625567,1760709070375,-500.0,0.00024931,2]
[391625568,1760709070384,-151.0,0.00024931,7]
[391625569,1760709070393,-500.0,0.00024931,2]
[391625570,1760709070402,-1649.56,0.00024931,2]
[391625571,1760709070412,-500.0,0.00024931,2]
[391625572,1760709070421,-500.0,0.00024931,2]
[391625573,1760709070431,-192.079068,0.00024931,7]
[391625574,1760709070440,-500.0,0.00024931,2]
[391625575,1760709070450,-500.0,0.00024931,2]
[391625576,1760709070465,-500.0,0.00024931,2]
[391625577,1760709070474,-500.0,0.00024931,2]
[391625578,1760709070484,-240.275471,0.00024931,7]
[391625579,1760709070494,-500.0,0.00024931,2]
[391625580,1760709070504,-500.0,0.00024931,2]
[391625581,1760709070514,-1028.69,0.00024931,2]
[391625582,1760709070524,-500.0,0.00024931,2]
[391625583,1760709070534,-507.36,0.00024931,2]
[391625584,1760709070543,-606.68206831,0.00024931,2]
[391625585,1760709070552,-368.52,0.00024931,2]
[391625586,1760709070561,-2000.0,0.00024931,7]
[391625587,1760709070574,-500.0,0.00024931,2]
[391625588,1760709070583,-500.0,0.00024931,2]
[391625589,1760709070595,-151.0,0.00024931,7]
[391625590,1760709070605,-2897.84,0.00024931,2]
[391625591,1760709070615,-300.0,0.00024931,2]
[391625592,1760709070625,-500.0,0.00024931,2]
[391625593,1760709070634,-1506.26,0.00024931,2]